fUST/lending_fUST_20250806
["ID","MTS","AMOUNT","RATE_DAILY","PERIOD"]
[377497888,1754429473335,-249.450475,0.000304,7]
[377497889,1754429473344,-249.450475,0.000304,7]
[377497890,1754429473354,-151.0,0.000304,7]
[377497891,1754429473363,-151.0,0.000304,7]
[377497892,1754429473373,-151.0,0.000304,7]
[377497893,1754429473382,-151.0,0.000304,7]
[377497894,1754429473392,-384.075943,0.000304,7]
[377497895,1754429473401,-151.0,0.000304,7]
[377497896,1754429473410,-384.075943,0.000304,7]
[377497897,1754429473419,-151.0,0.000304,7]
[377497898,1754429473429,-151.0,0.000304,7]
[377497899,1754429473439,-497.333361,0.000304,7]
[377497900,1754429473448,-497.333361,0.000304,7]
[377497901,1754429473458,-1712.627473,0.000304,7]
[377497902,1754429473467,-1712.627473,0.000304,7]
[377497903,1754429473477,-365.782644,0.000304,7]
[377497904,1754429473486,-365.782644,0.000304,7]
[377497905,1754429473498,-151.0,0.000304,7]
[377497906,1754429473507,-151.0,0.000304,7]
[377497907,1754429473517,-154.015781,0.000304,7]
[377497908,1754429473526,-151.0,0.000304,7]
[377497909,1754429473536,-151.0,0.000304,7]
[377497910,1754429473545,-274.87708,0.000304,7]
[377497911,1754429473555,-196.173257,0.000304,7]
[377497912,1754429473564,-196.173257,0.000304,7]
[377497913,1754429473575,-304.206725,0.000304,7]
[377497914,1754429473586,-304.206725,0.000304,7]
[377497915,1754429473595,-151.0,0.000304,7]
[377497916,1754429473604,-482.917969,0.000304,7]
[377497917,1754429473615,-482.917969,0.000304,7]
[377497918,1754429473624,-173.587474,0.000304,7]
[377497919,1754429473633,-173.587474,0.000304,7]
[377497920,1754429473642,-151.0,0.000304,7]
[377497921,1754429473653,-151.0,0.000304,7]
[377497922,1754429473663,-175.0,0.000304,7]
[377497923,1754429473672,-175.0,0.000304,7]
[377497924,1754429473681,-324.156581,0.000304,7]
[377497925,1754429473691,-151.0,0.000304,7]
[377497926,1754429473700,-324.156581,0.000304,7]
[377497927,1754429473709,-156.51082,0.000304,7]
[377497928,1754429473719,-964.554338,0.000304,7]
[377497929,1754429473728,-156.51082,0.000304,7]
[377497930,1754429473738,-151.0,0.000304,7]
[377497931,1754429473749,-964.554338,0.000304,7]
[377497932,1754429473763,-185.103777,0.000304,7]
[377497933,1754429473772,-151.0,0.000304,7]
[377497934,1754429473781,-151.0,0.0003041,7]
[377497935,1754429473791,-151.0,0.0003041,7]
[377497936,1754429473800,-151.0,0.0003041,7]
[377497937,1754429473810,-151.0,0.0003041,7]
[377497938,1754429473826,-275.533058,0.0003041,7]
[377497939,1754429473836,-151.0,0.0003041,7]
[377497940,1754429473845,-151.0,0.0003041,7]
[377497941,1754429473854,-429.62078725,0.0003041,2]
[377497942,1754429473863,-151.0,0.0003041,7]
[377497943,1754429473872,-153.384366,0.0003041,7]
[377497944,1754429473882,-151.0,0.0003041,7]
[377497945,1754429473891,-2599.73,0.0003041,2]
[377497946,1754429473900,-500.0,0.0003041,2]
[377497947,1754429473910,-419.700864,0.0003041,7]
[377497948,1754429473919,-647.28,0.0003041,2]
[377497949,1754429473928,-419.700864,0.0003041,7]
[377497950,1754429473938,-151.0,0.0003041,7]
[377497951,1754429473948,-562.570841,0.0003041,7]
[377497952,1754429473957,-562.570841,0.0003041,7]
[377497953,1754429473966,-460.0,0.0003041,2]
[377497954,1754429473975,-460.0,0.0003041,2]
[377497955,1754429473985,-181.88151,0.0003041,7]
[377497956,1754429473994,-181.88151,0.0003041,7]
[377497957,1754429474004,-151.0,0.0003041,7]
[377497958,1754429474013,-460.0,0.0003041,2]
[377497959,1754429474023,-460.0,0.0003041,2]
[377497960,1754429474031,-460.0,0.0003041,2]
[377497961,1754429474041,-460.0,0.0003041,2]
[377497962,1754429474050,-151.0,0.0003041,7]
[377497963,1754429474060,-890.25,0.0003041,2]
[377497964,1754429474069,-1215.52,0.0003041,2]
[377497965,1754429474078,-151.0,0.0003041,7]
[377497966,1754429474087,-151.0,0.0003041,7]
[377497967,1754429474096,-151.0,0.0003041,7]
[377497968,1754429474105,-249.450475,0.0003041,7]
[377497969,1754429474114,-249.450475,0.0003041,7]
[377497970,1754429474124,-1613.88,0.0003041,2]
[377497971,1754429474133,-1003.33,0.0003041,2]
[377497972,1754429474142,-151.0,0.0003041,7]
[377497973,1754429474151,-151.0,0.0003041,7]
[377497974,1754429474161,-207.146422,0.0003041,7]
[377497975,1754429474170,-151.0,0.0003041,7]
[377497976,1754429474179,-460.0,0.0003041,2]
[377497977,1754429474188,-474.15414276,0.0003041,2]
[377497978,1754429474197,-460.0,0.0003041,2]
[377497979,1754429474206,-910.87,0.0003041,2]
[377497980,1754429474215,-460.0,0.0003041,2]
[377497981,1754429474225,-384.075943,0.0003041,7]
[377497982,1754429474235,-151.0,0.0003041,7]
[377497983,1754429474244,-384.075943,0.0003041,7]
[377497984,1754429474254,-1721.06,0.0003041,2]
[377497985,1754429474263,-151.0,0.0003041,7]
[377497986,1754429474272,-460.0,0.0003041,2]
[377497987,1754429474281,-481.81223014,0.0003041,2]
[377497988,1754429474290,-475.04,0.0003041,2]
[377497989,1754429474299,-460.0,0.0003041,2]
[377497990,1754429474309,-510.22,0.0003041,2]
[377497991,1754429474418,-1697.81,0.0003041,2]
[377497992,1754429474429,-460.0,0.0003041,2]
[377497993,1754429474441,-460.0,0.0003041,2]
[377497994,1754429474450,-151.0,0.0003041,7]
[377497995,1754429474460,-497.333361,0.0003041,7]
[377497996,1754429474469,-497.333361,0.0003041,7]
[377497997,1754429474479,-460.0,0.0003041,2]
[377497998,1754429474488,-1712.627473,0.0003041,7]
[377497999,1754429474498,-1712.627473,0.0003041,7]
[377498000,1754429474507,-460.0,0.0003041,2]
[377498001,1754429474517,-460.0,0.0003041,2]
[377498002,1754429474527,-460.0,0.0003041,2]
[377498003,1754429474536,-460.0,0.0003041,2]
[377498004,1754429474545,-365.782644,0.0003041,7]
[377498005,1754429474555,-365.782644,0.0003041,7]
[377498006,1754429474564,-460.0,0.0003041,2]
[377498007,1754429474578,-1389.71,0.0003041,2]
[377498008,1754429474587,-1746.17,0.0003041,2]
[377498009,1754429474597,-151.0,0.0003041,7]
[377498010,1754429474606,-460.0,0.0003041,2]
[377498011,1754429474617,-151.0,0.0003041,7]
[377498012,1754429474626,-604.18,0.0003041,2]
[377498013,1754429474635,-1166.12,0.0003041,2]
[377498014,1754429474646,-151.0,0.0003041,7]
[377498015,1754429474655,-151.0,0.0003041,7]
[377498016,1754429474664,-885.05,0.0003041,2]
[377498017,1754429474673,-1602.43,0.0003041,2]
[377498018,1754429474682,-460.0,0.0003041,2]
[377498019,1754429474691,-1853.92,0.0003041,2]
[377498020,1754429474701,-1621.7,0.0003041,2]
[377498021,1754429474710,-460.0,0.0003041,2]
[377498022,1754429474719,-1277.23,0.0003041,2]
[377498023,1754429474729,-588.9,0.0003041,2]
[377498024,1754429474738,-460.0,0.0003041,2]
[377498025,1754429474747,-490.79,0.0003041,2]
[377498026,1754429474757,-1154.74,0.0003041,2]
[377498027,1754429474766,-460.0,0.0003041,2]
[377498028,1754429474775,-500.0,0.0003041,2]
[377498029,1754429474785,-2365.9,0.0003041,2]
[377498030,1754429474796,-2705.9,0.0003041,2]
[377498031,1754429474806,-460.0,0.0003041,2]
[377498032,1754429474815,-460.0,0.0003041,2]
[377498033,1754429474825,-196.173257,0.0003041,7]
[377498034,1754429474835,-196.173257,0.0003041,7]
[377498035,1754429474844,-742.9,0.0003041,2]
[377498036,1754429474854,-460.0,0.0003041,2]
[377498037,1754429474863,-866.16,0.0003041,2]
[377498038,1754429474873,-555.68,0.0003041,2]
[377498039,1754429474882,-1093.91,0.0003041,2]
[377498040,1754429474891,-460.0,0.0003041,2]
[377498041,1754429474900,-5056.15,0.0003041,2]
[377498042,1754429474909,-975.87,0.0003041,2]
[377498043,1754429474919,-1579.03,0.0003041,2]
[377498044,1754429474928,-304.206725,0.0003041,7]
[377498045,1754429474936,-1933.65,0.0003041,2]
[377498046,1754429474945,-304.206725,0.0003041,7]
[377498047,1754429474955,-460.0,0.0003041,2]
[377498048,1754429474964,-1460.3,0.0003041,2]
[377498049,1754429474974,-909.37,0.0003041,2]
[377498050,1754429474985,-1357.16,0.0003041,2]
[377498051,1754429474996,-460.0,0.0003041,2]
[377498052,1754429475005,-460.0,0.0003041,2]
[377498053,1754429475015,-758.18,0.0003041,2]
[377498054,1754429475025,-628.98,0.0003041,2]
[377498055,1754429475035,-2456.07,0.0003041,2]
[377498056,1754429475046,-151.0,0.0003041,7]
[377498057,1754429475056,-482.917969,0.0003041,7]
[377498058,1754429475066,-594.4,0.0003041,2]
[377498059,1754429475075,-2085.01,0.0003041,2]
[377498060,1754429475085,-482.917969,0.0003041,7]
[377498061,1754429475094,-173.587474,0.0003041,7]
[377498062,1754429475105,-740.07,0.0003041,2]
[377498063,1754429475114,-173.587474,0.0003041,7]
[377498064,1754429475124,-460.0,0.0003041,2]
[377498065,1754429475135,-460.0,0.0003041,2]
[377498066,1754429475146,-75664.3,0.0003041,2]
[377498067,1754429475155,-151.0,0.0003041,7]
[377498068,1754429475165,-597.5,0.0003041,2]
[377498069,1754429475175,-460.0,0.0003041,2]
[377498070,1754429475184,-1539.9,0.0003041,2]
[377498071,1754429475194,-151.0,0.0003041,7]
[377498072,1754429475204,-883.82,0.0003041,2]
[377498073,1754429475213,-460.0,0.0003041,2]
[377498074,1754429475222,-2763.59,0.0003041,2]
[377498075,1754429475232,-175.0,0.0003041,7]
[377498076,1754429475242,-175.0,0.0003041,7]
[377498077,1754429475251,-324.156581,0.0003041,7]
[377498078,1754429475261,-151.0,0.0003041,7]
[377498079,1754429475271,-324.156581,0.0003041,7]
[377498080,1754429475281,-1031.45,0.0003041,2]
[377498081,1754429475290,-790.56,0.0003041,2]
[377498082,1754429475299,-759.32,0.0003041,2]
[377498083,1754429475309,-460.0,0.0003041,2]
[377498084,1754429475318,-156.51082,0.0003041,7]
[377498085,1754429475327,-964.554338,0.0003041,7]
[377498086,1754429475338,-156.51082,0.0003041,7]
[377498087,1754429475347,-7586.92,0.0003041,2]
[377498088,1754429475357,-151.0,0.0003041,7]
[377498089,1754429475366,-787.25,0.0003041,2]
[377498090,1754429475377,-227.17582309,0.0003041,2]
[377498091,1754429475387,-460.0,0.0003041,2]
[377498092,1754429475399,-964.554338,0.0003041,7]
[377498093,1754429475410,-498.05,0.0003041,2]
[377498094,1754429475419,-151.0,0.0003041,7]
[377498095,1754429475428,-460.0,0.0003041,2]
[377498096,1754429475438,-1040.96,0.0003041,2]
[377498097,1754429475448,-460.0,0.0003041,2]
[377498098,1754429475458,-2012.92,0.0003041,2]
[377498099,1754429475467,-1073.67,0.0003041,2]
[377498100,1754429475478,-6734.57,0.0003041,2]
[377498101,1754429475488,-460.0,0.0003041,2]
[377498102,1754429475498,-460.0,0.0003041,2]
[377498103,1754429475508,-460.0,0.0003041,2]
[377498104,1754429475517,-1457.79,0.0003041,2]
[377498105,1754429475527,-460.0,0.0003041,2]
[377498106,1754429475536,-729.8,0.0003041,2]
[377498107,1754429475545,-460.0,0.0003041,2]
[377498108,1754429475555,-460.0,0.0003041,2]
[377498109,1754429475565,-1132.05,0.0003041,2]
[377498110,1754429475576,-3000.0,0.00030412,5]
[377498111,1754429475586,-3000.0,0.00030412,5]
[377498112,1754429475595,-199.66,0.00030432,15]
[377498113,1754429475604,-660.0,0.00030451,2]
[377498114,1754429475614,-150.0,0.00030454,2]
[377498115,1754429475625,-151.0,0.00030475,7]
[377498116,1754429475635,-152.836122,0.00030475,7]
[377498117,1754429475645,-12383.7971005,0.00030486,14]
[377498118,1754429475654,-199.66,0.00030532,15]
[377498119,1754429475666,-151.0,0.00030533,2]
[377498120,1754429475675,-23860.87155709,0.00030533,2]
[377498121,1754429475685,-1758.0,0.00030585,7]
[377498122,1754429475694,-1758.0,0.00030585,7]
[377498123,1754429475704,-1758.0,0.00030585,7]
[377498124,1754429475713,-1758.0,0.00030585,7]
[377498125,1754429475722,-1758.0,0.00030585,7]
[377498126,1754429475732,-1758.0,0.00030585,7]
[377498127,1754429475741,-692.61649863,0.00030585,7]
[377498128,1754429475752,-1758.0,0.00030585,7]
[377498129,1754429475762,-1758.0,0.00030585,7]
[377498130,1754429475771,-1754.0,0.00030585,7]
[377498131,1754429475780,-1758.0,0.00030585,7]
[377498132,1754429475790,-1758.0,0.00030585,7]
[377498133,1754429475799,-1758.0,0.00030585,7]
[377498134,1754429475808,-1758.0,0.00030585,7]
[377498135,1754429475818,-1758.0,0.00030585,7]
[377498136,1754429475827,-1758.0,0.00030585,7]
[377498137,1754429475836,-1758.0,0.00030585,7]
[377498138,1754429475846,-1758.0,0.00030585,7]
[377498139,1754429475855,-1758.0,0.00030585,7]
[377498140,1754429475865,-1758.0,0.00030585,7]
[377498141,1754429475874,-1758.0,0.00030585,7]
[377498142,1754429475883,-1758.0,0.00030585,7]
[377498143,1754429475891,-1758.0,0.00030585,7]
[377498144,1754429475900,-1758.0,0.00030585,7]
[377498145,1754429475910,-1758.0,0.00030585,7]
[377498146,1754429475919,-1758.0,0.00030585,7]
[377498147,1754429475928,-1758.0,0.00030585,7]
[377498148,1754429475938,-1758.0,0.00030585,7]
[377498149,1754429475949,-199.66,0.00030632,15]
[377498150,1754429475967,-2599.73,0.00030684,2]
[377498151,1754429475977,-500.0,0.00030684,2]
[377498152,1754429475992,-647.28,0.00030684,2]
[377498153,1754429476002,-407.19740476,0.00030684,2]
[377498154,1754429476011,-453.48631578,0.00030684,2]
[377498155,1754429476021,-460.0,0.00030684,2]
[377498156,1754429476031,-460.0,0.00030684,2]
[377498157,1754429476042,-460.0,0.00030684,2]
[377498158,1754429476052,-608.88760682,0.00030684,2]
[377498159,1754429476062,-890.25,0.00030684,2]
[377498160,1754429476073,-1215.52,0.00030684,2]
[377498161,1754429476083,-1613.88,0.00030684,2]
[377498162,1754429476093,-1003.33,0.00030684,2]
[377498163,1754429476104,-460.0,0.00030684,2]
[377498164,1754429476116,-489.00302518,0.00030684,2]
[377498165,1754429476126,-910.87,0.00030684,2]
[377498166,1754429476137,-1721.06,0.00030684,2]
[377498167,1754429476148,-473.74652271,0.00030684,2]
[377498168,1754429476159,-475.04,0.00030684,2]
[377498169,1754429476169,-460.0,0.00030684,2]
[377498170,1754429476273,-510.22,0.00030684,2]
[377498171,1754429476283,-1697.81,0.00030684,2]
[377498172,1754429476292,-460.0,0.00030684,2]
[377498173,1754429476302,-460.0,0.00030684,2]
[377498174,1754429476313,-460.0,0.00030684,2]
[377498175,1754429476323,-460.0,0.00030684,2]
[377498176,1754429476333,-460.0,0.00030684,2]
[377498177,1754429476342,-460.0,0.00030684,2]
[377498178,1754429476351,-460.0,0.00030684,2]
[377498179,1754429476360,-460.0,0.00030684,2]
[377498180,1754429476370,-1389.71,0.00030684,2]
[377498181,1754429476379,-1746.17,0.00030684,2]
[377498182,1754429476389,-460.0,0.00030684,2]
[377498183,1754429476398,-604.18,0.00030684,2]
[377498184,1754429476408,-1166.12,0.00030684,2]
[377498185,1754429476420,-885.05,0.00030684,2]
[377498186,1754429476429,-1602.43,0.00030684,2]
[377498187,1754429476438,-460.0,0.00030684,2]
[377498188,1754429476447,-1853.92,0.00030684,2]
[377498189,1754429476457,-1621.7,0.00030684,2]
[377498190,1754429476467,-460.0,0.00030684,2]
[377498191,1754429476476,-1277.23,0.00030684,2]
[377498192,1754429476486,-588.9,0.00030684,2]
[377498193,1754429476495,-460.0,0.00030684,2]
[377498194,1754429476506,-490.79,0.00030684,2]
[377498195,1754429476515,-1154.74,0.00030684,2]
[377498196,1754429476525,-460.0,0.00030684,2]
[377498197,1754429476535,-500.0,0.00030684,2]
[377498198,1754429476544,-2365.9,0.00030684,2]
[377498199,1754429476553,-2705.9,0.00030684,2]
[377498200,1754429476563,-460.0,0.00030684,2]
[377498201,1754429476573,-417.83898524,0.00030684,2]
[377498202,1754429476586,-742.9,0.00030684,2]
[377498203,1754429476597,-460.0,0.00030684,2]
[377498204,1754429476607,-866.16,0.00030684,2]
[377498205,1754429476618,-555.68,0.00030684,2]
[377498206,1754429476628,-1093.91,0.00030684,2]
[377498207,1754429476638,-460.0,0.00030684,2]
[377498208,1754429476648,-5056.15,0.00030684,2]
[377498209,1754429476659,-975.87,0.00030684,2]
[377498210,1754429476669,-1579.03,0.00030684,2]
[377498211,1754429476679,-1933.65,0.00030684,2]
[377498212,1754429476689,-460.0,0.00030684,2]
[377498213,1754429476699,-1460.3,0.00030684,2]
[377498214,1754429476709,-909.37,0.00030684,2]
[377498215,1754429476718,-1357.16,0.00030684,2]
[377498216,1754429476728,-460.0,0.00030684,2]
[377498217,1754429476738,-460.0,0.00030684,2]
[377498218,1754429476748,-758.18,0.00030684,2]
[377498219,1754429476760,-628.98,0.00030684,2]
[377498220,1754429476769,-2456.07,0.00030684,2]
[377498221,1754429476779,-594.4,0.00030684,2]
[377498222,1754429476789,-2085.01,0.00030684,2]
[377498223,1754429476798,-740.07,0.00030684,2]
[377498224,1754429476808,-460.0,0.00030684,2]
[377498225,1754429476818,-460.0,0.00030684,2]
[377498226,1754429476829,-42091.10118517,0.00030684,2]
[377498227,1754429476849,-1997.32776313,0.00030684,2]
[377498228,1754429479158,-460.0,0.00027397,2]
[377498229,1754429479173,-102.75039135,0.00027671,2]
[377498230,1754429479427,272.52860501,0.00024789,2]
[377498231,1754429480315,5000.0,0.0002512,6]
[377498232,1754429482087,160.0,0.0002479,2]
[377498233,1754429482139,500.0,0.00024789,2]
[377498234,1754429482179,614.64666002,0.00024789,2]
[377498235,1754429490666,5000.0,0.0002512,6]
[377498236,1754429505902,5000.0,0.0002512,6]
[377498237,1754429522402,5000.0,0.0002512,6]
[377498257,1754429537767,5000.0,0.0002512,6]
[377498260,1754429550907,500.0,0.00024789,2]
[377498261,1754429553601,5000.0,0.0002512,6]
[377498262,1754429554231,7952.82473497,0.0002469,2]
[377498263,1754429554256,10000.0,0.0002469,2]
[377498264,1754429554283,10000.0,0.0002469,2]
[377498265,1754429554308,10000.0,0.0002469,2]
[377498266,1754429554333,10000.0,0.0002469,2]
[377498267,1754429554358,10000.0,0.0002469,2]
[377498268,1754429554383,10000.0,0.0002469,2]
[377498269,1754429554406,10000.0,0.0002469,2]
[377498270,1754429554431,10000.0,0.0002469,2]
[377498271,1754429554466,10000.0,0.0002469,2]
[377498272,1754429554492,10000.0,0.0002469,2]
[377498273,1754429554517,10000.0,0.0002469,2]
[377498274,1754429554542,10000.0,0.0002469,2]
[377498275,1754429554567,10000.0,0.0002469,2]
[377498276,1754429554593,10000.0,0.0002469,2]
[377498277,1754429554618,10000.0,0.0002469,2]
[377498278,1754429554649,10000.0,0.0002469,2]
[377498279,1754429554676,10000.0,0.0002469,2]
[377498280,1754429554704,10000.0,0.0002469,2]
[377498281,1754429554732,10000.0,0.0002469,2]
[377498282,1754429554758,10000.0,0.0002469,2]
[377498283,1754429554784,10000.0,0.0002469,2]
[377498284,1754429554811,10000.0,0.0002469,2]
[377498285,1754429554836,10000.0,0.0002469,2]
[377498286,1754429554863,10000.0,0.0002469,2]
[377498287,1754429554888,10000.0,0.0002469,2]
[377498288,1754429554916,10000.0,0.0002469,2]
[377498289,1754429554943,10000.0,0.0002469,2]
[377498290,1754429554971,10000.0,0.0002469,2]
[377498291,1754429554998,10000.0,0.0002469,2]
[377498292,1754429555024,10000.0,0.0002469,2]
[377498293,1754429555276,10000.0,0.0002469,2]
[377498294,1754429555300,10000.0,0.0002469,2]
[377498295,1754429555327,10000.0,0.0002469,2]
[377498296,1754429555350,10000.0,0.0002469,2]
[377498297,1754429555374,10000.0,0.0002469,2]
[377498298,1754429555397,10000.0,0.0002469,2]
[377498299,1754429555421,2047.17526503,0.0002469,2]
[377498300,1754429568853,5000.0,0.0002512,6]
[377498301,1754429584627,5000.0,0.0002512,6]
[377498302,1754429600011,5000.0,0.0002512,6]
[377498303,1754429615269,5000.0,0.0002512,6]
[377498304,1754429631089,4210.51601975,0.0002512,6]
[377498330,1754429845253,-541.80227839,0.00025365,2]
[377498331,1754429847340,-107.05812501,0.00025365,2]
[377498332,1754429847366,-132.84187499,0.00025489,2]
[377498335,1754429874723,395.352361,0.00013699,2]
[377498336,1754429874923,395.352361,0.00020187,2]
[377498337,1754429947403,-219.07028228,0.00024674,2]
[377498338,1754429952375,-160.0,0.00024674,2]
[377498339,1754429954719,-10.24595976,0.00024674,2]
[377498341,1754430009525,-273.24046253,0.00024658,2]
[377498342,1754430016241,-106.75953747,0.00024658,2]
[377498343,1754430016264,-93.10661299,0.00025337,2]
[377498344,1754430017870,-89.6595554,0.00025337,2]
[377498345,1754430017895,-87.36713116,0.00025338,2]
[377498346,1754430021778,-95.39903723,0.00025338,2]
[377498347,1754430021803,-182.76616839,0.00025338,2]
[377498350,1754430201264,3879.0685852,0.00024464,2]
[377498351,1754430250894,-231.54681177,0.00024674,2]
[377498352,1754430254291,-2.04293345,0.00024674,2]
[377498353,1754430307765,666.0,0.00024492,2]
[377498354,1754430364555,10000.0,0.00024492,2]
[377498355,1754430392324,208.3083355,0.00024492,2]
[377498359,1754430541807,-160.15683092,0.00025336,2]
[377498360,1754430541832,-108.29669788,0.00025338,2]
[377498361,1754430543884,-300.0,0.00025338,2]
[377498362,1754430546107,-155.37,0.00025338,2]
[377498363,1754430548831,-179.483699,0.00025338,2]
[377498364,1754430552175,-199.82023762,0.00025338,2]
[377498365,1754430555612,-304.07304996,0.00025338,2]
[377498366,1754430557321,-285.32834173,0.00025338,2]
[377498367,1754430559466,-173.09730446,0.00025338,2]
[377498368,1754430564006,-195.14059369,0.00025338,2]
[377498369,1754430566755,-264.1580105,0.00025338,2]
[377498370,1754430570665,-161.66704392,0.00025338,2]
[377498371,1754430573011,-303.04462544,0.00025338,2]
[377498372,1754430578650,-176.87335964,0.00025338,2]
[377498373,1754430596322,1000.0,0.00031259,30]
[377498374,1754430605883,641.78472924,0.00023238,2]
[377498395,1754430632253,-161.49,0.00025338,7]
[377498397,1754430632264,-300.0,0.00025436,2]
[377498400,1754430632273,-272.0,0.00025436,2]
[377498403,1754430632283,-1200.0,0.00025436,2]
[377498406,1754430632295,-500.0,0.00025437,2]
[377498409,1754430632305,-500.0,0.00025437,2]
[377498411,1754430632314,-500.0,0.00025437,2]
[377498414,1754430632323,-177.42933916,0.00025437,2]
[377498419,1754430632339,-322.57066084,0.00025437,2]
[377498422,1754430632348,-500.0,0.00025437,2]
[377498425,1754430632358,-205.68355722,0.00025437,2]
[377498430,1754430632377,-174.80895953,0.00025437,2]
[377498433,1754430632387,-500.0,0.00025437,2]
[377498436,1754430632396,-500.0,0.00025437,2]
[377498439,1754430632405,-500.0,0.00025437,2]
[377498442,1754430632415,-3559.45011586,0.00025438,2]
[377498529,1754430638382,-1050.55430344,0.00025438,2]
[377498531,1754430638395,-573.1403942,0.00025438,2]
[377498532,1754430638407,-961.54334193,0.00025438,2]
[377498533,1754430638461,-18755.31184457,0.00025438,2]
[377498534,1754430638471,-1404.4116114,0.00025438,2]
[377498535,1754430638480,-303.505589,0.00025467,2]
[377498536,1754430638489,-208.1822755,0.00025488,2]
[377498537,1754430638499,-1117.16908501,0.00025489,2]
[377498538,1754430638508,-157.204,0.00025632,10]
[377498539,1754430638517,-1442.1845656,0.00025679,2]
[377498540,1754430638526,-3017.56519002,0.000258,2]
[377498541,1754430638535,-161.49,0.00026078,7]
[377498542,1754430638547,-325.3032388,0.00026574,2]
[377498543,1754430638557,-2806.35296379,0.00026661,2]
[377498544,1754430638567,-395.352361,0.00026676,2]
[377498545,1754430638576,-276.064142,0.00026762,6]
[377498546,1754430638585,-161.49,0.00026818,7]
[377498547,1754430638595,-461.15695721,0.00027,3]
[377498548,1754430638605,-234.03172126,0.00027273,2]
[377498549,1754430638615,-2182.02609596,0.00027273,2]
[377498550,1754430638624,-239.9,0.00027287,10]
[377498551,1754430638633,-370000.0,0.00027297,2]
[377498552,1754430638642,-500.0,0.00027373,2]
[377498553,1754430638652,-500.0,0.00027373,2]
[377498554,1754430638662,-500.0,0.00027373,2]
[377498555,1754430638673,-500.0,0.00027373,2]
[377498556,1754430638682,-500.0,0.00027373,2]
[377498557,1754430638692,-500.0,0.00027373,2]
[377498558,1754430638701,-460.0,0.00027397,2]
[377498559,1754430638711,-460.0,0.00027397,2]
[377498560,1754430638720,-460.0,0.00027397,2]
[377498561,1754430638730,-460.0,0.00027397,2]
[377498562,1754430638739,-460.0,0.00027397,2]
[377498563,1754430638749,-460.0,0.00027397,2]
[377498564,1754430638759,-460.0,0.00027397,2]
[377498565,1754430638769,-460.0,0.00027397,2]
[377498566,1754430638779,-461.22458589,0.00027397,2]
[377498567,1754430638788,-462.27590777,0.00027397,2]
[377498568,1754430638800,-460.0,0.00027397,2]
[377498569,1754430638809,-466.77568601,0.00027397,2]
[377498570,1754430638819,-460.0,0.00027397,2]
[377498571,1754430638829,-460.0,0.00027397,2]
[377498572,1754430638839,-461.67076512,0.00027397,2]
[377498573,1754430638848,-461.53661659,0.00027397,2]
[377498574,1754430638858,-460.0,0.00027397,2]
[377498575,1754430638867,-460.0,0.00027397,2]
[377498576,1754430638877,-460.0,0.00027397,2]
[377498577,1754430638886,-460.0,0.00027397,2]
[377498578,1754430638896,-395.1115109,0.00027397,2]
[377498579,1754430638906,-462.95293368,0.00027397,2]
[377498580,1754430638915,-460.0,0.00027397,2]